Cogmind - Beta 12 @@@ ROGUE MODE // 2024.02.17 @ 20:22:12 Player: Dosh Result: Destroyed self with Rocket Launcher Performance ------------- Evolutions (0) 0 Regions Visited (4) 800 Robots Destroyed (39) 195 Value Destroyed (786) 786 Prototype IDs (25) 500 Alien Tech Used (0) 0 Bonus (260) 260 TOTAL SCORE: 2541 Bonus ------- Aligned with FarCom 300 Friendly Fire -40 Cogmind --------- Core Integrity 0/250 Matter 269/300 Energy 100/100 System Corruption 15% Temperature Cool (0) Movement Flying (197) Ox2 Location -9/Mines Parts ------- > --- POWER (1) -------- (None) > --- PROPULSION (2) --- Flight Unit Flight Unit > --- UTILITY (2) ------ Large Storage Unit > --- WEAPON (2) ------- Rocket Launcher > --- INVENTORY (15) --- Ion Engine Structural Scanner Transport Network Coupler Hacking Suite Hacking Suite Bomb Drone Bay Assault Rifle Battle Cannon Datajack Deploy-a-Sentry Deploy-a-Sentry Deploy-a-Sentry Peak State ------------ > --- POWER ------------ Ion Engine > --- PROPULSION ------- Light Treads Light Treads > --- UTILITY ---------- Large Storage Unit Light Armor Plating > --- WEAPON ----------- Small Laser Assault Rifle > --- INVENTORY -------- Ion Engine Wheel Structural Scanner Transport Network Coupler Hacking Suite Hacking Suite Bomb Drone Bay Battle Cannon Grenade Launcher Rocket Launcher Datajack Deploy-a-Sentry Deploy-a-Sentry Deploy-a-Sentry [Rating: 12] Favorites ----------- Power Ion Engine Engine Ion Engine Propulsion Light Treads Treads Light Treads Wheel Wheel Flight Unit Flight Unit Utility Large Storage Unit Storage Large Storage Unit Protection Light Armor Plating Weapon Assault Rifle Energy Gun Small Laser Ballistic Gun Assault Rifle Launcher Rocket Launcher Build | -11 -10 -10 -10 -9 ------- Run | Jun Mat Min Exi Min Slots Evolved . | . . . . . Power . | . . . . . Propulsion . | . . . . . Utility . | . . . . . Weapon . | . . . . . Parts Attached 27 | 6 15 . 3 3 Power 5 | 1 4 . . . Engine 5 | 1 4 . . . Core . | . . . . . Reactor . | . . . . . Propulsion 10 | 2 4 . 2 2 Treads 6 | 2 3 . 1 . Leg . | . . . . . Wheel 2 | . 1 . 1 . Hover . | . . . . . Flight 2 | . . . . 2 Utility 4 | 1 3 . . . Device . | . . . . . Storage 2 | 1 1 . . . Processor . | . . . . . Hackware . | . . . . . Protection 2 | . 2 . . . Artifact . | . . . . . Weapon 8 | 2 4 . 1 1 Energy Gun 1 | . 1 . . . Energy Cannon . | . . . . . Ballistic Gun 5 | 2 3 . . . Ballistic Cannon . | . . . . . Launcher 2 | . . . 1 1 Special Weapon . | . . . . . Impact Weapon . | . . . . . Slashing Weapon . | . . . . . Piercing Weapon . | . . . . . Special Melee Weapon . | . . . . . Unidentified Prototypes . | . . . . . Parts Lost 13 | . 6 . 7 . Power 3 | . 2 . 1 . Propulsion 4 | . 1 . 3 . Utility 2 | . 1 . 1 . Weapon 4 | . 2 . 2 . Highest Loss Streak 7 | . 3 . 7 . To Critical Strikes . | . . . . . Average Slot Usage (%) 95 | . 95 100 97 54 Engine 13 | . 13 14 14 . Treads 23 | . 23 28 26 . Wheel 2 | . 3 . 1 . Storage 14 | . 14 14 14 14 Protection 11 | . 10 14 12 . Energy Gun 7 | . 4 14 13 . Ballistic Gun 18 | . 22 14 11 . Naked Turns . | . . . . . Heaviest Build 32 | 12 32 31 32 24 Greatest Support 40 | 40 40 40 40 8 Greatest Overweight (x) 7 | . 3 . 6 7 Average Overweight (x) . | . . . . 2 Largest Inventory Capacity 15 | 8 15 15 15 15 Average Capacity 12 | 6 12 15 15 15 Most Carried 15 | 3 10 14 15 13 Average Carried 8 | 1 6 13 14 13 Final Capacity 15 | 8 15 15 15 15 Final Carried 14 | 3 10 14 14 13 Class Distribution -------------------- 100% | Mutant Dominant Class ---------------- Mutant | -10/Materials Mutant | -10/Mines Mutant | -10/Exiles Mutant | -9/Mines Resources | -11 -10 -10 -10 -9 ----------- Run | Jun Mat Min Exi Min Matter Collected 1006 | 155 825 . . 26 Remotely . | . . . . . Salvage Created 1199 | . 1092 . . 107 Parts 87 | . 79 . . 8 Haulers Intercepted 2 | . 2 . . . Recyclers Shooed . | . . . . . Parts Field Recycled . | . . . . . Retrieved Matter . | . . . . . Parts Self-Destructed . | . . . . . Prevented . | . . . . . Kills | -11 -10 -10 -10 -9 ------- Run | Jun Mat Min Exi Min Combat Hostiles Destroyed 27 | . 23 . . 4 Guns 23 | . 23 . . . AOE 4 | . . . . 4 Classes Destroyed 8 | . 7 . . 1 Worker 4 | . 4 . . . Tunneler 1 | . 1 . . . Hauler 2 | . 2 . . . Recycler 1 | . . . . 1 Operator 3 | . 3 . . . Watcher 1 | . 1 . . . Swarmer 10 | . 6 . . 4 Grunt 17 | . 17 . . . Best Kill Streak 4 | . 4 . . 4 Combat Bots Only 4 | . 3 . . 4 Max Kills in Single Turn 4 | . 1 . . 4 Gunslinging . | . . . . . Exploded 4 | . . . . 4 Melee . | . . . . . Uniques/NPCs Destroyed . | . . . . . Combat | -11 -10 -10 -10 -9 -------- Run | Jun Mat Min Exi Min Damage Taken 1768 | . 1168 . 509 91 Core 256 | . 129 . 84 43 Absorbed by Shields . | . . . . . Redirected to Shielding 52 | . 52 . . . Regen/Repaired (Parts) 178 | . 178 . . . Core Remaining (%) 100 | 100 . . . . Volleys Fired 113 | . 110 . 1 2 Largest 2 | . 2 . 2 1 Hottest 70 | . 60 . 70 33 Shots Fired 222 | . 218 . 2 2 Gun 219 | . 218 . 1 . Cannon . | . . . . . Launcher 3 | . . . 1 2 Special . | . . . . . Kinetic 207 | . 207 . . . Thermal 12 | . 11 . 1 . Explosive 3 | . . . 1 2 Electromagnetic . | . . . . . Robot Hit Streak 11 | . 11 . . . Robot Miss Streak 4 | . 4 . . 2 Penetration Max . | . . . . . Secondary Targets 3 | . 3 . . . Max Gunslinging Chain 1 | . 1 . . . Shots Hit Robots 139 | . 139 . . . Core Hits 58 | 2 52 . . 4 Critical Kills 1 | . 1 . . . Critical Parts Destroyed . | . . . . . Critical Strikes 1 | . 1 . . . Destroy 1 | . 1 . . . Melee Attacks . | . . . . . Impact . | . . . . . Slashing . | . . . . . Piercing . | . . . . . Sneak Attacks . | . . . . . Combat Hostiles . | . . . . . Follow-up Attacks . | . . . . . Damage Inflicted 2115 | 5 1814 . 40 256 Guns 1801 | . 1801 . . . Cannons . | . . . . . Explosions 296 | . . . 40 256 Melee . | . . . . . Ramming 18 | 5 13 . . . Kinetic 1736 | . 1736 . . . Thermal 65 | . 65 . . . Explosive 296 | . . . 40 256 Electromagnetic . | . . . . . Impact . | . . . . . Slashing . | . . . . . Piercing . | . . . . . Highest Corruption 15 | . . . 15 15 Average Corruption 11 | . . . 2 15 Corruption Purged . | . . . . . Corruption Blocked . | . . . . . Effects 4 | . . . . 4 Message Errors 3 | . . . . 3 Energy Discharges 1 | . . . . 1 Overload Shots . | . . . . . Overflow Damage 41 | . . . . 41 Projectiles . | . . . . . Explosions 41 | . . . . 41 Melee . | . . . . . Knockbacks . | . . . . . Impact . | . . . . . Kinetic . | . . . . . Secondary . | . . . . . Self-Inflicted Damage 85 | . . . . 85 Shots 2 | . . . . 2 Rammed 6 | 2 4 . . . Targets Rammed 6 | 2 4 . . . Kicked . | . . . . . Crushed . | . . . . . Highest Temperature 27 | . 27 . 18 . Average Temperature 7 | . 7 . 9 . Received Heat Transfer 531 | . 471 . 60 . Siege Activations . | . . . . . Robots Corrupted . | . . . . . Combat Hostiles . | . . . . . Parts Fried . | . . . . . Impact Corruptions . | . . . . . Robots Melted . | . . . . . Combat Hostiles . | . . . . . Parts Melted . | . . . . . Heat Transferred 150 | . 150 . . . Parts Sabotaged . | . . . . . Parts Stolen . | . . . . . Parts Stripped . | . . . . . Power Chain Reactions . | . . . . . Missiles Intercepted . | . . . . . Alert | -11 -10 -10 -10 -9 ------- Run | Jun Mat Min Exi Min Peak Influence 378 | . 378 85 . 115 Initial 85 | . . 85 . . Average 176 | . 224 67 . 113 Maximum Alert Level 1 | . 1 . . . Low Security (%) 55 | 100 36 100 . 100 Level 1 44 | . 63 . . . Level 2 . | . . . . . Level 3 . | . . . . . Level 4 . | . . . . . Level 5 . | . . . . . High Security . | . . . . . Max Security . | . . . . . Squads Dispatched 6 | . 6 . . . Investigation 4 | . 4 . . . Extermination . | . . . . . Reinforcement 2 | . 2 . . . Assault . | . . . . . Garrison . | . . . . . Intercept . | . . . . . Searches Triggered . | . . . . . Construction Impeded . | . . . . . Haulers Reinforced . | . . . . . Active Scanning Responses . | . . . . . Cargo Convoy Interrupts . | . . . . . Stealth | -11 -10 -10 -10 -9 --------- Run | Jun Mat Min Exi Min Distress Signals 6 | . 6 . . . Communications Jammed . | . . . . . Distress Signals . | . . . . . Times Spotted 62 | . 40 . 15 7 Peak Tracking Total 12 | . 4 . 12 4 Tactical Retreats 2 | . 1 . 1 . Traps | -11 -10 -10 -10 -9 ------- Run | Jun Mat Min Exi Min Traps Triggered 5 | . 5 . . . Indirectly . | . . . . . Trap Hack Attempts . | . . . . . Triggered . | . . . . . Disarmed . | . . . . . Reprogrammed . | . . . . . Reused . | . . . . . Traps Extracted . | . . . . . Installed . | . . . . . Triggered . | . . . . . Machines | -11 -10 -10 -10 -9 ---------- Run | Jun Mat Min Exi Min Machines Disabled 2 | . 1 . 1 . Max in Single Turn 1 | . 1 . 1 . Machines Repaired . | . . . . . Machines Sabotaged . | . . . . . Overloaded Fab Kills . | . . . . . Hacking | -11 -10 -10 -10 -9 --------- Run | Jun Mat Min Exi Min Machines Accessed 8 | . 6 1 1 . Terminals 4 | . 4 . . . Fabricators . | . . . . . Repair Stations 1 | . 1 . . . Recycling Units 1 | . 1 . . . Scanalyzers . | . . . . . Garrison Access . | . . . . . Total Hacks 19 | . 17 1 1 . Successful 11 | . 9 1 1 . Failed 8 | . 8 . . . Catastrophic 1 | . 1 . . . Database Lockouts . | . . . . . Manual 11 | . 10 . 1 . Terminals 11 | . 11 . . . Fabricators . | . . . . . Repair Stations 5 | . 5 . . . Recycling Units 1 | . 1 . . . Scanalyzers . | . . . . . Garrison Access . | . . . . . Terminal Hacks 5 | . 3 1 1 . Robot Analysis 1 | . 1 . . . Prototype ID Bank 1 | . 1 . . . Open Door 1 | . . 1 . . Locate Traps 1 | . 1 . . . EX-Prototype ID Bank 1 | . . . 1 . Fabricator Hacks . | . . . . . Repair Station Hacks 4 | . 4 . . . Scan Component 2 | . 2 . . . Repair 2 | . 2 . . . Recycling Unit Hacks . | . . . . . Scanalyzer . | . . . . . Garrison Access Hacks . | . . . . . Unauthorized Hacks 2 | . 2 . . . Terminals 1 | . 1 . . . Operators 1 | . 1 . . . Fabricators . | . . . . . Repair Stations . | . . . . . Recycling Units 1 | . 1 . . . Tunnel 1 | . 1 . . . Scanalyzers . | . . . . . Garrison Access . | . . . . . Data Cores Recovered . | . . . . . Used . | . . . . . Hacking Detections 5 | . 5 . . . Full Trace Events 2 | . 2 . . . Feedback Events . | . . . . . Feedback Blocked . | . . . . . Robot Schematics Acquired . | . . . . . Robots Built . | . . . . . Authchips . | . . . . . Time . | . . . . . Total Robot Build Rating . | . . . . . Part Schematics Acquired . | . . . . . Parts Built . | . . . . . Authchips . | . . . . . Time . | . . . . . Total Part Build Rating . | . . . . . Parts Repaired 2 | . 2 . . . Time 52 | . 52 . . . Parts Recycled . | . . . . . Recycled Matter . | . . . . . Retrieved Matter . | . . . . . Retrieved Components . | . . . . . Parts Scanalyzed . | . . . . . Part Schematics Acquired . | . . . . . Parts Damaged . | . . . . . Bothacking | -11 -10 -10 -10 -9 ------------ Run | Jun Mat Min Exi Min Used RIF Installer . | . . . . . Robots Hacked . | . . . . . Non-combat . | . . . . . Combat . | . . . . . Robot Hacks Applied . | . . . . . Relay Couplers Released . | . . . . . Fabnet Peak Effective % . | . . . . . Robots Rewired . | . . . . . Allies Hacked . | . . . . . Hacks Repelled . | . . . . . Allies | -11 -10 -10 -10 -9 -------- Run | Jun Mat Min Exi Min Total Allies 3 | . . 3 . . Largest Group 3 | . . 3 3 . Highest-Rated Group 40 | . . 40 40 . Highest-Rated Ally 16 | . . 16 16 . Total Orders . | . . . . . Ally Attacks 7 | . . . 7 . Total Damage 47 | . . . 47 . Kills . | . . . . . Allies Corrupted . | . . . . . Allies Melted . | . . . . . Intel | -11 -10 -10 -10 -9 ------- Run | Jun Mat Min Exi Min Robot Analysis Total 1 | . 1 . . . Derelict Logs Recovered 3 | . . 2 . 1 Drone Launches . | . . . . . Drone Recoveries . | . . . . . Exploration | -11 -10 -10 -10 -9 ------------- Run | Jun Mat Min Exi Min Turns Passed 2651 | 103 1618 503 331 96 Spaces Moved 1401 | 59 778 313 208 43 Core 8 | 5 . . 2 1 Treads 1100 | 54 554 313 179 . Legs . | . . . . . Wheels 251 | . 224 . 27 . Hover . | . . . . . Flight 42 | . . . . 42 Fastest Speed 50 | 50 95 160 110 197 Average Speed 151 | 150 143 160 155 207 Slowest Speed 440 | 160 240 160 350 440 Overloaded Moves . | . . . . . Propulsion Burnouts . | . . . . . Robots Hopped . | . . . . . Cave-ins Triggered . | . . . . . Exploration Rate (%) 50 | 4 99 71 61 18 Regions Visited 4 Branch Regions 3 Pre-discovered Areas 3 | . 1 2 . . Known Exits Taken . | . . . . . Unknown Exits Taken 4 | 1 1 1 1 . Scrap Searched 2 | . . 2 . . Spaces Dug . | . . . . . Terrain Destroyed 14 | . . . . 14 Melee . | . . . . . Projectile . | . . . . . AOE 14 | . . . . 14 Terrain Rammed . | . . . . . Walls Destroyed . | . . . . . Machines Disabled . | . . . . . Actions | -11 -10 -10 -10 -9 --------- Run | Jun Mat Min Exi Min Total 1699 | 69 1051 315 216 48 Wait 137 | . 137 . . . Move 1398 | 59 777 312 207 43 Hop . | . . . . . Pick Up 16 | 3 7 3 3 . Fast Attach 15 | 6 7 . . 2 Attach 5 | . 3 . 1 1 Detach . | . . . . . Swap 7 | . 5 . 2 . Drop 3 | . 1 . 2 . Fire 113 | . 110 . 1 2 Melee . | . . . . . Ram . | . . . . . Kick . | . . . . . Crush 5 | 1 4 . . . Escape Stasis . | . . . . . Rewire . | . . . . . Trap . | . . . . . Miscellaneous . | . . . . . Route ------- -11/Junkyard -10/Materials (discovered 5 exits: [*Mat x3] / *Min x2) -10/Mines (discovered 3 exits: [*Mat x2] / *Exi) -10/Exiles -9/Mines History --------- Turn | Location | Event 9 | -11/Junkyard | Discovered new exit (range 14) 104 | -11/Junkyard | Entered Materials 171 | -10/Materials | Discovered new exit (range 15) 308 | -10/Materials | Build established: Mutant 413 | -10/Materials | Discovered new exit (range 3) 483 | -10/Materials | Lost 3 parts (1n1u1w) 512 | -10/Materials | Repaired Assault Rifle 540 | -10/Materials | Repaired Lgt. Treads 686 | -10/Materials | Discovered new exit (range 15) 840 | -10/Materials | Discovered new exit (range 16) 1309 | -10/Materials | Discovered new exit (range 16) 1314 | -10/Materials | Core integrity fell below 50% 1722 | -10/Materials | Entered Mines 1725 | -10/Mines | Found the Drone Emporium 1735 | -10/Mines | Found Prototype Device 1762 | -10/Mines | Received a Rocket Launcher from a helpful Derelict 1809 | -10/Mines | YI-UF0 nonchalantly dropped a Grenade Launcher on the ground 1816 | -10/Mines | A weapon hastily lodged in a ceiling crevice suddenly fell to the ground 1868 | -10/Mines | Discovered new exit (range 7) 1889 | -10/Mines | Assisted by bots powering up and referring to "LRC-V3" 1933 | -10/Mines | Deemed a non-threat by the Exiles lab entrance 1933 | -10/Mines | Discovered new exit (range 5) 1967 | -10/Mines | Learned location of Zion (-6) 2063 | -10/Mines | Discovered new exit (range 5) 2225 | -10/Mines | Entered Exiles 2225 | -10/Exiles | Accompanied by 3 allies 2265 | -10/Exiles | Met 8R-AWN 2293 | -10/Exiles | Met EX-HEX 2334 | -10/Exiles | Met EX-BIN 2355 | -10/Exiles | Aligned with FarCom system 2357 | -10/Exiles | Given EX-Vault access code 2393 | -10/Exiles | Opened EX-Vault 2406 | -10/Exiles | Found Deploy-a-Sentry 2408 | -10/Exiles | Found Deploy-a-Sentry 2411 | -10/Exiles | Found Deploy-a-Sentry 2442 | -10/Exiles | Warned to stay clear of 0b10 Research branches 2462 | -10/Exiles | Exiles lab attacked by MAIN.C 2504 | -10/Exiles | Attacked by the Exiles 2542 | -10/Exiles | Discovered new exit (range 10) 2553 | -10/Exiles | System corruption reached 10% 2556 | -10/Exiles | Core integrity fell below 20% 2556 | -10/Exiles | Left Exiles lab with Deploy-a-Sentry 2556 | -10/Exiles | Entered Mines 2583 | -9/Mines | Lost 7 parts (1p3n1u2w) 2609 | -9/Mines | Assembled infested the area 2646 | -9/Mines | Learned Materials interactive machine intel 2652 | -9/Mines | Destroyed self with Rocket Launcher Last Messages --------------- LOCATION=UNKNOWN GOAL=ESCAPE 02557_ S-10 Pest destroyed. 02557_ Destroyed Flight Unit. 02557_ S-10 Pest destroyed. 02563_ Acquired Flight Unit. 02571_ Acquired 8 matter. 02573_ Acquired 10 matter. 02575_ Acquired 1 matter. 02577_ Acquired 7 matter. 02580_ BMNU8|55SDFIP<0:GKZJN9O# 1PNETQNZQJ/JF 02595_ 0 QUG/FQBTG%EL9YO5 >BT:YQLKTUQA 02609_ ALERT: Infestation in the mines, dispatching Demolisher response squad. 02612_ System corrupted: Energy discharge (-31). 02639_ DT|/XAAZB<2V9DSX6MAH6G 02646_ Acquired derelict log, extracted data. Data stored: Materials interactive machine intel. 02649_ K-01 Serf collects debris. 02652_ R-06 Scavenger destroyed. Map ----- +----------------------------------------------------+ | ?????????????????????????????????????????????????? | | ?????????????????????????????????????????????????? | | ?????????????????????????????????????????????????? | | ?????????????????????????????????????????????????? | | ?????????????????????????????????????????????????? | | ?????????????????????????????????????????????????? | | ?????????????????????????????????????????????????? | | ?????????????????????????????????????????????????? | | ?????????????????????????????????????????????????? | | ?????????????????????????????????????????????????? | | ?????????????????????????????????????????????????? | | ?????????????????????????????????????????????????? | | ?????????????????????????????????????????????????? | | ?????????????????????????????????????????????????? | | ??????????????????????????????????? #????????????? | | ??????????????????????????????????? ###?????????? | | ??????????????????????????????????? ?????????? | | ???????????????????????????????????? ?????????? | | ???????????????????????????????????? ?????????? | | ????????????????????????????????????# #?????????? | | ????????????????????????????????????# #?????????? | | ?????????????? ?????????????????????# #?????????? | | ????????????# ??????????????????# ##????????# | | ?????????????# ??????????????## ##????## ? | | ?????????????# ############# #???? ?? | | ?????????????# @ ## #???? #?? | | ????????????# % t###### #?? | | ????????????# ## #?? | | ????????????# k #??# #?? | | ????????????## ???# ####### ##?? | | ?????????????# ????## ##?????# #??? | | ?????????????# ?????## ##??????# #??? | | ?????????????# ???????# #???????# #??? | | ????????????? s## ??????# #???????# ##?? | | ????????????? ss #?##??????# #???????# #?? | | ?????????????? ??????????# ##???????## #?? | | ?????????????? ??????????# ###?????????# #?? | | ????????????????????????# ## ##???????????# #?? | | ???????????????????????# #?# #????????????# #?? | | ???????????????????????# ??# #????????????# ### | | ???????????????????????## ???# #???????????## | | ????????????????????????##???# #??????????## | | ?????????????????????????????# #??????????# * [ | | ?????????????????????????????# ???????????# [ | | ?????????????????????????????###???????????# * * | | ???????????????????????????????????????????# | | ???????????????????????????????????????????# | | ???????????????????????????????????????????####### | | ?????????????????????????????????????????????????? | | ?????????????????????????????????????????????????? | +----------------------------------------------------+ Best States ------------- Heat Dissipation 25 Energy Generation 10 Energy Capacity 250 Matter Stores 300 Matter Capacity 300 Sight Range 16 Terrain Scan Density 10 Armor Coverage 150 Propulsion Shielding 33 Evasion (%) 41 Recoil Reduction 2 Item Schematics ----------------- None Robot Schematics ------------------ None Fabricated ------------ Nothing Alien Tech Used ----------------- None Achievements -------------- None Challenges ------------ None Game ------ Seed PhasingEnergyRifle Manual? 0 Play Time 00:11:12 Cumulative 213.0 hours Start 2024.02.17 @ 20:10:31 End 2024.02.17 @ 20:22:12 Sessions 1 Manual Loads 0 Difficulty Rogue Special Mode None Game No. 164 Rogue 164 Adventurer 0 Explorer 0 Win Type - Total 7 Types 4/0/1/1/0/0/0/1/0 Lore% 68 Gallery% 74 Achievement% 64 Wizard Run 0 Options --------- ASCII 0 Keyboard 1 Movement Numpad Keybinds 0 Fullscreen 2 Font 18/SmallcapsGlow Map View 76x50 Tactical HUD 1 Map Filters NONE Filters NONE Steam 1 RUN: 8b23b1fd-cc88-4c19-8432-3a0f69ec49bd